bitfinex-derivatives/quotes_ETHF0:USTF0_20210402
["timestamp","ask_amount","ask_price","bid_price","bid_amount"]
[1617342275077,3.04896397,1992.2,1992.0,2.90695]
[1617342277478,4.04726397,1992.2,1992.0,2.90695]
[1617342277879,1.17260074,1992.1,1992.0,2.90695]
[1617342279180,1.17268458,1992.2,1992.0,2.90695]
[1617342280683,70.01959091,1992.3,1992.0,2.90695]
[1617342281782,68.8465,1992.3,1992.0,2.90695]
[1617342281983,68.30054127,1992.3,1992.0,2.90695]
[1617342282383,69.47362721,1992.3,1992.0,2.90695]
[1617342282783,1.17433498,1992.2,1991.7,100.0743]
[1617342283183,0.704459,1991.8,1991.7,100.0743]
[1617342283483,0.70414699,1991.9,1991.7,100.0743]
[1617342284185,0.70399694,1992.0,1991.7,100.0743]
[1617342284785,0.70399694,1992.0,1991.9,2.90695]
[1617342284984,0.70399694,1992.0,1991.9,32.90695]
[1617342286688,0.93883556,1992.1,1991.9,32.90695]
[1617342287289,0.70429355,1992.0,1991.9,32.90695]
[1617342287488,0.70429355,1992.0,1991.9,34.90695]
[1617342287888,0.70484783,1992.3,1991.9,34.90695]
[1617342288289,2.93980281,1993.1,1991.9,34.90695]
[1617342288290,0.70274449,1992.8,1992.3,75.3466]
[1617342288489,0.70274449,1992.8,1992.4,30.0]
[1617342288889,0.70276313,1992.9,1992.7,2.90695]
[1617342289189,0.63628064,1993.1,1992.8,30.0]
[1617342290791,0.63628064,1993.1,1993.0,2.90695]
[1617342290991,3.74259941,1993.4,1993.0,2.90695]
[1617342292697,1.17159941,1993.4,1993.0,2.90695]
[1617342292897,1.17159941,1993.4,1993.3,2.75903519]
[1617342293099,1.17159941,1993.4,1993.3,4.02753519]
[1617342294197,1.1713707,1993.5,1993.3,4.02753519]
[1617342296001,0.1678707,1993.5,1993.3,4.02753519]
[1617342296201,0.1678707,1993.5,1993.3,2.75903519]
[1617342296902,3.0748207,1993.5,1993.3,2.75903519]
[1617342297102,57.0177,1993.4,1993.3,2.75903519]
[1617342300906,59.92465,1993.4,1993.3,2.75903519]
[1617342302110,57.0177,1993.4,1993.3,2.75903519]
[1617342303107,56.0142,1993.4,1993.3,2.75903519]
[1617342308320,13.5013,1993.7,1993.3,2.75903519]
[1617342308920,13.5013,1993.7,1993.6,2.90695]
[1617342309124,13.5013,1993.7,1993.6,4.44575]
[1617342310022,12.4978,1993.7,1993.6,4.44575]
[1617342317130,11.4943,1993.7,1993.6,4.44575]
[1617342317932,76.8377,1993.7,1993.6,4.44575]
[1617342318333,76.8377,1993.7,1993.6,1.5388]
[1617342318531,76.8377,1993.7,1993.6,1.7745]
[1617342318732,11.4943,1993.7,1993.6,1.7745]
[1617342319132,11.4943,1993.7,1993.6,4.68145]
[1617342332557,11.4943,1993.7,1993.6,2.90695]
[1617342338168,10.4915,1993.7,1993.6,64.03005]
[1617342338371,13.6116,1993.9,1993.6,64.03005]
[1617342338568,2.90695,1994.0,1993.6,64.03005]
[1617342339369,6.41459661,1994.2,1993.9,2.90695]
[1617342339568,6.41459661,1994.2,1993.9,4.14975]
[1617342339770,3.84359661,1994.2,1993.9,4.14975]
[1617342341169,2.98868664,1994.2,1993.9,4.14975]
[1617342341370,2.98868664,1994.2,1994.1,2.90695]
[1617342342773,2.90695,1994.2,1994.1,2.90695]
[1617342344481,4.07777843,1994.2,1994.1,2.90695]
[1617342345076,3.07497843,1994.2,1994.1,2.90695]
[1617342348178,2.07217843,1994.2,1994.1,62.29095]
[1617342351287,2.07217843,1994.2,1994.1,2.90695]
[1617342351881,3.40137843,1994.2,1992.1,2.0]
[1617342352080,59.1024,1993.5,1992.6,59.1024]
[1617342352281,59.7472,1993.5,1992.6,59.1024]
[1617342353084,1.6476,1993.5,1989.5,1.0115]
[1617342353284,1.6476,1993.5,1993.3,2.90695]
[1617342353285,0.70214041,1993.4,1993.3,2.90695]
[1617342353683,1.6476,1993.5,1993.3,2.90695]
[1617342355082,0.6448,1993.5,1993.3,2.90695]
[1617342355282,2.90695,1993.4,1993.3,2.90695]
[1617342355686,4.07879715,1993.4,1993.3,2.90695]
[1617342356285,73.16689715,1993.4,1993.3,2.90695]
[1617342356484,71.99505,1993.4,1993.3,2.90695]
[1617342356884,74.23216444,1993.4,1993.3,2.90695]
[1617342358986,73.56144289,1993.4,1993.3,2.90695]
[1617342359185,73.46104289,1993.4,1993.3,2.90695]
[1617342362093,72.45824289,1993.4,1993.3,2.90695]
[1617342364595,3.37014289,1993.4,1993.3,2.90695]
[1617342364796,3.37014289,1993.4,1993.3,76.73535]
[1617342364994,2.9748555,1993.4,1993.3,76.73535]
[1617342366898,1.1711055,1993.4,1993.3,76.73535]
[1617342367199,2.92821195,1993.4,1993.3,76.73535]
[1617342369101,1.92541195,1993.4,1993.3,76.73535]
[1617342372804,2.23082889,1993.6,1993.3,76.73535]
[1617342373605,2.23082889,1993.6,1993.5,2.90695]
[1617342374005,4.28152433,1993.6,1993.5,2.90695]
[1617342375809,2.23082889,1993.6,1993.5,2.90695]
[1617342376207,1.04837534,1993.7,1993.5,2.90695]
[1617342376406,0.14789085,1993.6,1993.5,2.90695]
[1617342376807,1.04837534,1993.7,1993.5,2.90695]
[1617342377208,1.04837534,1993.7,1993.6,72.8874]
[1617342377407,1.04837534,1993.7,1993.6,74.374]
[1617342378510,0.14789211,1993.9,1993.6,74.374]
[1617342378710,0.14789211,1993.9,1993.6,72.8874]
[1617342378911,0.1478968,1993.7,1993.6,72.8874]
[1617342379310,3.07663796,1993.8,1993.6,72.8874]
[1617342379512,3.07663796,1993.8,1993.7,2.90695]
[1617342379710,2.92874011,1993.8,1993.7,2.90695]
[1617342380010,3.07663885,1993.8,1993.7,2.90695]
[1617342380410,2.92874011,1993.8,1993.7,2.90695]
[1617342381217,4.24757808,1993.9,1993.8,80.6503]
[1617342381451,2.571,1994.0,1993.8,80.6503]
[1617342381621,2.93186897,1994.1,1993.9,32.90695]
[1617342382035,6.44659701,1994.7,1993.9,32.90695]
[1617342382036,1.17222346,1994.0,1993.9,32.90695]
[1617342382228,1.17222346,1994.0,1993.9,34.90695]
[1617342382414,0.938245,1994.0,1993.9,34.90695]
[1617342382629,0.70445197,1994.0,1993.9,34.90695]
[1617342382813,0.70445197,1994.0,1993.9,32.90695]
[1617342383213,0.74092127,1994.2,1993.9,32.90695]
[1617342383413,1.05077127,1994.2,1993.9,32.90695]
[1617342383613,1.05077127,1994.2,1994.1,2.90695]
[1617342383813,1.05077127,1994.2,1994.1,4.83695]
[1617342384413,0.30985,1994.2,1994.1,4.83695]
[1617342384813,1.17459638,1994.4,1994.3,60.5779]
[1617342385613,1.17459638,1994.4,1994.3,63.48485]
[1617342386214,1.17459638,1994.4,1994.3,93.48485]
[1617342387716,2.05883401,1994.5,1994.3,93.48485]
[1617342388115,1.17497624,1994.4,1994.3,93.48485]
[1617342389417,1.17185788,1994.8,1994.3,93.48485]
[1617342389615,1.17185788,1994.8,1994.7,2.90695]
[1617342392121,1.48221532,1994.9,1994.7,2.90695]
[1617342392822,1.17167714,1994.8,1994.7,2.90695]
[1617342393222,1.48227833,1994.9,1994.7,2.90695]
[1617342394926,1.17169664,1994.8,1994.7,2.90695]
[1617342395324,0.16969664,1994.8,1994.7,2.90695]
[1617342399125,0.31044303,1994.9,1994.7,2.90695]
[1617342401631,2.36349942,1994.9,1994.7,2.90695]
[1617342401831,2.05264906,1994.8,1994.7,2.90695]
[1617342402030,4.95959906,1994.8,1994.7,2.90695]
[1617342402231,3.95759906,1994.8,1994.7,2.90695]
[1617342402933,2.90695,1994.8,1994.7,2.90695]
[1617342409241,1.90495,1994.8,1994.7,2.90695]
[1617342412046,1.90495,1994.8,1994.0,2.90695]
[1617342412246,0.29931839,1994.6,1994.0,2.90695]
[1617342412445,72.4277,1994.1,1994.0,2.90695]
[1617342412645,74.1389,1994.1,1994.0,2.90695]
[1617342414048,77.04585,1994.1,1994.0,2.90695]
[1617342414250,4.61815,1994.1,1994.0,2.90695]
[1617342414848,5.55455953,1994.1,1994.0,2.90695]
[1617342415949,4.61815,1994.1,1994.0,2.90695]
[1617342416249,3.61615,1994.1,1994.0,2.90695]
[1617342417049,0.7092,1994.1,1994.0,2.90695]
[1617342417252,0.93646715,1994.2,1994.0,2.90695]
[1617342417451,0.93668454,1994.3,1994.0,2.90695]
[1617342417854,0.93668115,1994.2,1994.0,2.90695]
[1617342418654,0.93677175,1994.3,1994.0,2.90695]
[1617342420056,0.93677175,1994.3,1994.2,2.90695]
[1617342421456,1.17128964,1994.4,1994.2,2.90695]
[1617342422056,0.93690961,1994.4,1994.2,2.90695]
[1617342423056,0.93690961,1994.4,1994.3,62.9367]
[1617342423260,1.10604662,1994.6,1994.3,62.9367]
[1617342423456,4.56142051,1994.8,1994.3,62.9367]
[1617342423457,2.50900289,1994.8,1994.3,62.9367]
[1617342423857,4.56125234,1994.8,1994.3,62.9367]
[1617342424056,2.05224945,1994.8,1994.7,2.90695]
[1617342424256,2.35214697,1994.9,1994.7,2.90695]
[1617342424556,2.05220506,1994.9,1994.7,2.90695]
[1617342425660,2.05283608,1994.8,1994.7,2.90695]
[1617342427762,2.05314859,1994.9,1994.7,2.90695]
[1617342429164,2.05314859,1994.9,1994.7,4.55025]
[1617342429963,2.05379136,1995.0,1994.7,4.55025]
[1617342430262,1.05179136,1995.0,1994.9,2.90695]
[1617342431064,0.9945,1995.1,1994.9,2.90695]
[1617342431465,56.73217394,1995.2,1994.9,2.90695]
[1617342431866,1.91999013,1995.1,1994.9,2.90695]
[1617342432467,0.29563428,1995.1,1994.9,2.90695]
[1617342433267,0.29561468,1995.2,1995.1,78.7527]
[1617342433467,0.29561468,1995.2,1995.1,80.6856]
[1617342434270,28.33361468,1995.3,1995.1,83.59255]
[1617342437279,28.06771468,1995.3,1995.1,83.59255]
[1617342441381,27.06571468,1995.3,1995.1,83.59255]
[1617342444686,27.06571468,1995.3,1995.1,2.90695]
[1617342444885,28.23850524,1995.3,1995.1,2.90695]
[1617342445685,28.23850524,1995.3,1995.2,73.5871]
[1617342446786,27.06571468,1995.3,1995.2,73.5871]
[1617342447086,28.23862461,1995.3,1995.2,73.5871]
[1617342448390,27.23662461,1995.3,1995.2,73.5871]
[1617342455394,26.49992461,1995.3,1995.2,73.5871]
[1617342455594,25.32701468,1995.3,1995.2,73.5871]
[1617342456094,27.38636556,1995.3,1995.2,73.5871]
[1617342464801,16.63975088,1995.3,1995.2,73.5871]
[1617342465199,14.5804,1995.3,1995.2,73.5871]
[1617342465902,16.63988181,1995.3,1995.2,73.5871]
[1617342466303,14.5804,1995.3,1995.2,73.5871]
[1617342467103,16.63955353,1995.3,1995.2,73.5871]
[1617342468305,17.52466584,1995.3,1995.2,73.5871]
[1617342473308,14.5804,1995.3,1995.2,73.5871]
[1617342474808,14.5804,1995.3,1995.1,2.90695]
[1617342475010,67.5599,1995.2,1995.1,2.90695]
[1617342475209,69.34407055,1995.2,1995.1,2.90695]
[1617342475611,73.77695962,1995.2,1995.1,2.90695]
[1617342476810,76.68390962,1995.2,1995.1,2.90695]
[1617342477712,73.77695962,1995.2,1995.1,2.90695]
[1617342477914,6.21705962,1995.2,1995.1,2.90695]
[1617342478415,5.90785434,1995.2,1995.1,2.90695]
[1617342479014,0.49697055,1995.2,1995.1,2.90695]
[1617342480215,2.23167055,1995.2,1995.1,2.90695]
[1617342481415,2.55933821,1995.2,1995.1,2.90695]
[1617342481615,2.55933821,1995.2,1995.1,4.27655]
[1617342482216,2.55933821,1995.2,1995.1,63.16635]
[1617342484118,2.55933821,1995.2,1995.1,65.16635]
[1617342484719,0.49697055,1995.2,1995.1,63.16635]
[1617342485321,0.39687055,1995.2,1995.1,63.16635]
[1617342485821,0.39687055,1995.2,1995.1,65.16635]
[1617342488425,16.03777332,1995.3,1995.1,65.16635]
[1617342489928,1.17613971,1995.2,1995.1,65.16635]
[1617342491334,1.04093971,1995.2,1995.1,65.16635]
[1617342493037,1.04093971,1995.2,1995.1,63.16635]
[1617342494440,0.03913971,1995.2,1995.1,63.16635]
[1617342494640,2.06105075,1995.5,1995.1,63.16635]
[1617342494839,2.06105075,1995.5,1995.4,2.90695]
[1617342495341,1.05925075,1995.5,1995.4,2.90695]
[1617342496740,2.94213,1995.8,1995.4,2.90695]
[1617342496941,2.94213,1995.8,1995.7,2.90695]
[1617342497342,1.94033,1995.8,1995.7,2.90695]
[1617342500546,4.11890879,1995.9,1995.7,2.90695]
[1617342501447,3.11710879,1995.9,1995.7,2.90695]
[1617342502348,2.11530879,1995.9,1995.7,2.90695]
[1617342503555,2.11530879,1995.9,1995.7,76.01315]
[1617342504355,1.11350879,1995.9,1995.7,76.01315]
[1617342505356,24.06319824,1996.2,1995.7,76.01315]
[1617342506356,5.29488756,1996.1,1995.7,76.01315]
[1617342506856,5.29488756,1996.1,1996.0,2.90695]
[1617342507356,24.06320083,1996.2,1996.0,2.90695]
[1617342508356,23.56720083,1996.2,1996.0,2.90695]
[1617342508957,5.29443762,1996.1,1996.0,2.90695]
[1617342509358,23.56675828,1996.2,1996.0,2.90695]
[1617342509759,18.27229837,1996.2,1996.0,2.90695]
[1617342511161,6.48233557,1996.1,1996.0,2.90695]
[1617342513363,18.27229837,1996.2,1996.0,2.90695]
[1617342514766,6.48235993,1996.1,1996.0,2.90695]
[1617342515168,18.27229837,1996.2,1996.0,2.90695]
[1617342516270,6.48230488,1996.1,1996.0,2.90695]
[1617342516470,5.52319355,1996.1,1996.0,2.90695]
[1617342521975,18.27229837,1996.2,1996.0,2.90695]
[1617342528675,6.4837887,1996.1,1996.0,2.90695]
[1617342530378,5.8126887,1996.1,1996.0,2.90695]
[1617342534278,90.6188,1996.2,1996.0,2.90695]
[1617342534580,4.19746371,1996.1,1996.0,2.90695]
[1617342538686,13.9057,1996.2,1996.0,2.90695]
[1617342538886,13.9057,1996.2,1996.0,4.51005]
[1617342539485,12.904,1996.2,1996.0,4.51005]
[1617342540085,14.904,1996.2,1996.0,2.90695]
[1617342540687,6.48299109,1996.1,1996.0,2.90695]
[1617342541888,7.49639109,1996.1,1996.0,2.90695]
[1617342542287,6.48299109,1996.1,1996.0,2.90695]
[1617342543187,71.81579109,1996.1,1996.0,2.90695]
[1617342543787,76.01380442,1996.1,1996.0,2.90695]
[1617342545490,75.01210442,1996.1,1996.0,2.90695]
[1617342545890,69.53081333,1996.1,1996.0,2.90695]
[1617342546490,68.52911333,1996.1,1996.0,2.90695]
[1617342548492,67.52741333,1996.1,1996.0,2.90695]
[1617342552401,66.52571333,1996.1,1996.0,2.90695]
[1617342553404,65.52401333,1996.1,1996.0,2.90695]
[1617342555405,64.52231333,1996.1,1996.0,2.90695]
[1617342558608,69.82685152,1996.1,1996.0,2.90695]
[1617342559407,64.52231333,1996.1,1996.0,2.90695]
[1617342559608,64.46221333,1996.1,1996.0,2.90695]
[1617342560508,64.03151333,1996.1,1996.0,2.90695]
[1617342562409,63.02981333,1996.1,1996.0,2.90695]
[1617342567315,64.96471333,1996.1,1996.0,2.90695]
[1617342567516,64.96471333,1996.1,1995.0,67.5062]
[1617342567916,2.06913157,1995.1,1995.0,67.5062]
[1617342568116,2.06913157,1995.1,1994.7,30.0]
[1617342568117,59.3304,1995.0,1994.7,30.0]
[1617342568316,59.3304,1995.0,1994.1,59.3304]
[1617342568517,3.41743157,1995.1,1992.5,4.13140689]
[1617342568718,3.41743157,1995.1,1992.3,7.88280886]
[1617342568719,59.3486,1994.4,1994.1,2.0]
[1617342568917,1.17974268,1994.3,1994.1,2.0]
[1617342569117,1.17974268,1994.3,1993.4,59.3486]
[1617342569118,1.475305,1994.3,1993.4,59.3486]
[1617342569318,1.17935941,1994.2,1993.5,30.0]
[1617342569518,73.706,1993.7,1992.5,104.5475]
[1617342569918,73.706,1993.7,1993.6,2.90695]
[1617342570117,0.94313574,1993.9,1993.6,32.90695]
[1617342570918,0.9430058,1993.8,1993.6,32.90695]
[1617342571117,0.9430058,1993.8,1993.6,2.90695]
[1617342571717,0.9429367,1993.7,1993.6,2.90695]
[1617342572117,63.6510367,1993.7,1993.6,2.90695]
[1617342572318,62.7081,1993.7,1993.6,2.90695]
[1617342574721,1.8513,1993.9,1993.6,2.90695]
[1617342575724,0.93928193,1994.1,1993.6,2.90695]
[1617342575924,0.93928193,1994.1,1994.0,2.90695]
[1617342576925,0.93841094,1994.2,1994.1,59.2469]
[1617342578028,0.93862305,1994.3,1994.1,59.2469]
[1617342578727,0.93840659,1994.2,1994.1,59.2469]
[1617342582631,1.17293808,1994.3,1994.1,59.2469]
[1617342583032,0.93737649,1994.4,1994.1,59.2469]
[1617342583231,0.93737649,1994.4,1994.0,2.90695]
[1617342583432,64.7103,1994.3,1994.0,2.90695]
[1617342583630,66.2845,1994.3,1994.0,2.90695]
[1617342583832,67.22151373,1994.3,1994.0,2.90695]
[1617342584032,67.22151373,1994.3,1994.2,2.90695]
[1617342584433,2.51121373,1994.3,1994.2,2.90695]
[1617342584633,1.5742,1994.3,1994.2,2.90695]
[1617342584835,0.93699202,1994.3,1994.2,2.90695]
[1617342585434,0.93699202,1994.3,1994.2,4.53335]
[1617342585635,0.9373264,1994.4,1994.2,4.53335]
[1617342586038,1.46733565,1994.6,1994.2,4.53335]
[1617342586039,0.93751221,1994.5,1994.2,4.53335]
[1617342587135,1.23285633,1994.6,1994.2,4.53335]
[1617342587435,0.23075633,1994.6,1994.2,4.53335]
[1617342587637,14.0718,1994.7,1994.2,4.53335]
[1617342588036,14.0718,1994.7,1994.6,2.90695]
[1617342589037,14.0718,1994.7,1994.6,4.17865]
[1617342591540,14.0718,1994.7,1994.6,2.90695]
[1617342594443,13.0697,1994.7,1994.6,2.90695]
[1617342598044,14.2404317,1994.7,1994.6,2.90695]
[1617342601549,13.2383317,1994.7,1994.6,2.90695]
[1617342605252,12.0676,1994.7,1994.6,2.90695]
[1617342608456,11.0655,1994.7,1994.6,2.90695]
[1617342611659,1.16999304,1994.8,1994.6,2.90695]
[1617342611859,1.17005587,1994.9,1994.6,2.90695]
[1617342612260,1.17005587,1994.9,1994.8,84.66695]
[1617342612659,15.0759036,1995.0,1994.8,84.66695]
[1617342615563,14.0738036,1995.0,1994.8,84.66695]
[1617342616659,14.0738036,1995.0,1994.8,2.90695]
[1617342617260,96.0801036,1995.0,1994.8,2.90695]
[1617342617660,14.0738036,1995.0,1994.8,2.90695]
[1617342618261,0.93641706,1994.9,1994.8,2.90695]
[1617342619667,0.93705021,1995.2,1994.8,2.90695]
[1617342620065,0.93705021,1995.2,1994.9,58.703]
[1617342620265,0.93705021,1995.2,1994.9,60.5451]
[1617342620466,0.93666377,1995.1,1994.9,60.5451]
[1617342621066,0.93645016,1995.2,1994.9,60.5451]
[1617342621468,0.93645082,1995.1,1994.9,60.5451]
[1617342621670,0.93654097,1995.2,1994.9,60.5451]
[1617342622366,0.93654097,1995.2,1995.1,2.90695]
[1617342622567,1.10511718,1995.4,1995.1,2.90695]
[1617342622968,2.05137706,1995.5,1995.1,2.90695]
[1617342624369,2.05137706,1995.5,1995.4,2.90695]
[1617342624569,3.05757706,1995.5,1995.4,2.90695]
[1617342625771,2.05137706,1995.5,1995.4,2.90695]
[1617342626572,2.05137706,1995.5,1995.4,4.82995]
[1617342627475,2.05137706,1995.5,1995.4,77.56695]
[1617342629177,4.96049239,1995.6,1995.4,77.56695]
[1617342629780,3.95839239,1995.6,1995.4,77.56695]
[1617342636585,2.95629239,1995.6,1995.4,77.56695]
[1617342638588,2.05354239,1995.6,1995.4,77.56695]
[1617342638889,2.05537295,1995.5,1995.4,4.82995]
[1617342639089,2.05537295,1995.5,1995.4,2.90695]
[1617342640896,4.90940261,1995.6,1995.4,2.90695]
[1617342641096,4.90940261,1995.6,1995.4,4.20715]
[1617342643700,3.90730261,1995.6,1995.4,4.20715]
[1617342644001,2.05634887,1995.5,1995.4,4.20715]
[1617342650607,1.05424887,1995.5,1995.4,4.20715]
[1617342651008,3.91041893,1995.6,1995.4,4.20715]
[1617342651407,2.93839253,1995.5,1995.4,4.20715]
[1617342651808,3.91063317,1995.6,1995.4,4.20715]
[1617342661821,3.91063317,1995.6,1995.4,2.90695]
[1617342662022,2.05873828,1995.5,1995.4,2.90695]
[1617342663726,3.91127198,1995.6,1995.4,2.90695]
[1617342665128,2.9385672,1995.5,1995.4,2.90695]
[1617342666434,3.91068882,1995.6,1995.4,2.90695]
[1617342672940,2.93994515,1995.5,1995.4,2.90695]
[1617342679945,4.93934515,1995.5,1995.4,2.90695]
[1617342680848,1.9994,1995.5,1995.4,2.90695]
[1617342683448,68.2661,1995.5,1995.4,2.90695]
[1617342683848,1.9994,1995.5,1995.4,2.90695]
[1617342684048,1.9994,1995.5,1993.5,30.0]
[1617342684249,67.7877,1994.8,1993.8,67.7877]
[1617342684449,69.1717,1994.8,1993.8,67.7877]
[1617342684648,0.94042596,1994.5,1993.8,67.7877]
[1617342684850,0.94042596,1994.5,1994.4,2.90695]
[1617342685848,0.94042596,1994.5,1994.4,63.94205]
[1617342686049,1.17516035,1994.6,1994.4,63.94205]
[1617342686449,1.17487561,1994.5,1994.4,63.94205]
[1617342686649,36.05795,1994.0,1993.4,74.114]
[1617342686849,37.73035,1994.0,1993.9,2.90695]
[1617342687349,118.42195,1994.0,1993.9,2.90695]
[1617342700265,119.3616519,1994.0,1993.9,2.90695]
[1617342706370,118.42195,1994.0,1993.9,2.90695]
[1617342709371,37.73035,1994.0,1993.9,2.90695]
[1617342710772,39.77889748,1994.0,1993.9,2.90695]
[1617342711373,42.68584748,1994.0,1993.9,2.90695]
[1617342711973,40.6373,1994.0,1993.9,2.90695]
[1617342712373,42.68605432,1994.0,1993.9,2.90695]
[1617342712573,40.6373,1994.0,1993.9,2.90695]
[1617342716883,42.68676917,1994.0,1993.9,2.90695]
[1617342717083,39.77981917,1994.0,1992.7,71.4265]
[1617342717285,77.3818,1993.4,1992.7,71.4265]
[1617342717485,79.3666,1993.4,1992.7,71.4265]
[1617342717684,79.3666,1993.4,1993.3,2.90695]
[1617342718084,79.51446967,1993.4,1993.3,2.90695]
[1617342718585,79.3666,1993.4,1993.3,2.90695]
[1617342733203,1.9848,1993.4,1993.3,2.90695]
[1617342733404,0.69941966,1993.8,1993.3,2.90695]
[1617342733605,1.5537,1993.4,1993.3,2.90695]
[1617342734202,4.46065,1993.4,1993.3,2.90695]
[1617342736208,5.15953748,1993.4,1993.3,2.90695]
[1617342736606,4.46065,1993.4,1993.3,2.90695]
[1617342738009,5.15945087,1993.4,1993.3,2.90695]
[1617342738813,4.46065,1993.4,1993.3,2.90695]
[1617342739211,7.39218071,1993.4,1993.3,2.90695]
[1617342739610,6.46065,1993.4,1993.3,2.90695]
[1617342740210,7.39216068,1993.4,1993.3,2.90695]
[1617342740511,6.46065,1993.4,1993.3,2.90695]
[1617342741315,7.39202595,1993.4,1993.3,2.90695]
[1617342744217,6.79643647,1993.4,1993.3,2.90695]
[1617342744617,6.46065,1993.4,1993.3,2.90695]
[1617342744815,36.46065,1993.4,1993.3,2.90695]
[1617342745017,6.46065,1993.4,1993.3,0.39600227]
[1617342745418,82.3723,1993.3,1991.9,78.4573]
[1617342746220,82.3723,1993.3,1992.9,2.90695]
[1617342748220,82.3723,1993.3,1993.1,2.90695]
[1617342750424,2.90695,1993.2,1993.1,2.90695]
[1617342751226,5.41804906,1993.2,1993.1,2.90695]
[1617342752730,2.90695,1993.2,1993.1,2.90695]
[1617342754128,2.90695,1993.2,1991.9,78.4573]
[1617342754429,82.3723,1993.3,1993.0,2.90695]
[1617342754627,83.3693,1993.3,1993.0,2.90695]
[1617342756528,2.90695,1993.1,1993.0,2.90695]
[1617342758529,5.41811212,1993.1,1992.8,2.90695]
[1617342759730,58.2656,1992.9,1992.8,2.90695]
[1617342760430,61.17255,1992.9,1992.8,2.90695]
[1617342760631,62.67245,1992.9,1992.8,2.90695]
[1617342770243,61.17255,1992.9,1992.8,2.90695]
[1617342772947,58.2656,1992.9,1992.1,73.2184]
[1617342773549,58.2656,1992.9,1992.8,2.90695]
[1617342775650,61.17255,1992.9,1992.8,2.90695]
[1617342784059,61.86970358,1992.9,1992.8,2.90695]
[1617342785061,61.17255,1992.9,1992.8,2.90695]
[1617342787063,63.68393915,1992.9,1992.8,2.90695]
[1617342788463,61.17255,1992.9,1992.8,2.90695]
[1617342788663,2.67571449,1993.0,1992.8,2.90695]
[1617342788664,0.93031449,1993.0,1992.8,2.90695]
[1617342788863,0.93031449,1993.0,1992.8,4.24645]
[1617342789063,0.69811928,1992.9,1992.8,4.24645]
[1617342790265,0.69805215,1993.0,1992.8,79.21205]
[1617342790466,0.69803207,1992.9,1992.8,79.21205]
[1617342791169,0.69803207,1992.9,1992.8,4.24645]
[1617342791369,0.69803207,1992.9,1992.8,2.90695]
[1617342791570,0.9304567,1993.0,1992.8,2.90695]
[1617342791773,2.90695,1992.9,1992.8,2.90695]
[1617342793372,3.60486038,1992.9,1992.8,2.90695]
[1617342793571,3.60486038,1992.9,1992.8,77.73005]
[1617342794073,2.90695,1992.9,1992.8,77.73005]
[1617342795573,2.90695,1992.9,1992.8,2.90695]
[1617342795773,0.93053299,1993.0,1992.8,2.90695]
[1617342796173,0.69819103,1992.9,1992.8,2.90695]
[1617342796373,1.1665045,1992.9,1992.8,2.90695]
[1617342798674,1.1665045,1992.9,1992.8,87.07385]
[1617342798874,1.1665963,1993.0,1992.8,87.07385]
[1617342799275,1.1666661,1992.9,1992.8,87.07385]
[1617342800578,1.16645561,1993.0,1992.8,87.07385]
[1617342800776,0.16475561,1993.0,1992.8,87.07385]
[1617342807882,4.11421906,1993.2,1992.8,87.07385]
[1617342808582,2.04794789,1993.0,1992.8,87.07385]
[1617342809283,2.04794789,1993.0,1992.8,2.90695]
[1617342809682,2.04794789,1993.0,1992.8,32.90695]
[1617342810083,2.04846032,1993.1,1992.8,32.90695]
[1617342810282,2.04846032,1993.1,1992.9,2.0]
[1617342810483,0.93582089,1993.1,1993.0,30.0]
[1617342810685,0.93618369,1993.2,1993.0,32.0]
[1617342810882,0.93618369,1993.2,1993.1,58.203]
[1617342811082,0.70238558,1993.2,1993.1,90.0286]
[1617342811484,0.70251891,1993.3,1993.1,90.0286]
[1617342811886,0.70251891,1993.3,1993.2,2.90695]
[1617342812083,0.70251891,1993.3,1993.2,32.90695]
[1617342814285,0.70137619,1993.7,1993.2,32.90695]
[1617342814885,0.99555843,1993.9,1993.2,32.90695]
[1617342815785,0.99555843,1993.9,1993.8,2.90695]
[1617342815985,0.99555843,1993.9,1993.8,4.33285]
[1617342816387,36.05795,1994.0,1993.8,4.33285]
[1617342818387,36.99350193,1994.0,1993.8,4.33285]
[1617342818986,36.05795,1994.0,1993.8,4.33285]
[1617342821488,36.05795,1994.0,1993.8,1.4259]
[1617342821687,36.05795,1994.0,1993.5,32.0]
[1617342821887,35.05625,1994.0,1993.9,80.4066]
[1617342822089,35.05625,1994.0,1993.9,83.31355]
[1617342822892,36.06565,1994.0,1993.9,83.31355]
[1617342823093,35.05625,1994.0,1993.9,83.31355]
[1617342823293,35.99212213,1994.0,1993.9,83.31355]
[1617342824394,35.05625,1994.0,1993.9,83.31355]
[1617342828801,34.05455,1994.0,1993.9,83.31355]
[1617342829607,34.05455,1994.0,1993.9,2.90695]
[1617342829810,79.2184,1993.9,1992.9,79.2184]
[1617342830009,81.2057,1993.9,1992.9,79.2184]
[1617342830209,81.2057,1993.9,1993.6,2.90695]
[1617342831913,82.2163,1993.9,1993.6,2.90695]
[1617342832113,3.93123571,1993.9,1992.1,2.0]
[1617342832315,3.93123571,1993.9,1993.3,2.90695]
[1617342832512,0.93284083,1993.6,1993.3,2.90695]
[1617342833113,81.14,1993.4,1993.3,2.90695]
[1617342833314,82.7515,1993.4,1993.3,2.90695]
[1617342834215,85.65845,1993.4,1993.3,2.90695]
[1617342835919,85.58969375,1993.4,1993.3,2.90695]
[1617342837621,85.58969375,1993.4,1992.4,83.1498]
[1617342838220,82.68274375,1993.4,1993.3,2.90695]
[1617342840224,85.58969375,1993.4,1993.3,2.90695]
[1617342840624,84.65675,1993.4,1993.3,2.90695]
[1617342842025,2.90695,1993.4,1993.3,2.90695]
[1617342842225,1.16654522,1993.5,1993.3,2.90695]
[1617342842427,1.16654522,1993.5,1993.4,83.39001484]
[1617342842834,0.16484522,1993.5,1993.4,83.39001484]
[1617342843027,86.64815,1993.6,1993.4,83.39001484]
[1617342843635,2.90695,1993.6,1993.3,2.90695]
[1617342844233,2.90695,1993.6,1993.5,2.90695]
[1617342844434,3.84084319,1993.6,1993.5,2.90695]